Cogmind - Beta 14 @@@ ROGUE MODE // 2024.08.26 @ 23:11:06 Player: OctagonalPrism Result: Destroyed by G-34 Mercenary with Small Laser Performance ------------- Evolutions (0) 0 Regions Visited (4) 800 Robots Destroyed (35) 175 Value Destroyed (836) 836 Prototype IDs (26) 520 Alien Tech Used (0) 0 Bonus (300) 300 TOTAL SCORE: 2631 Bonus ------- Aligned with FarCom 300 Cogmind --------- Core Integrity 0/250 Matter 219/300 Energy 1660/1660 System Corruption 2% Temperature Cool (23) Movement Treading (160) Location -9/Mines Parts ------- > --- POWER (1) -------- Light Nuclear Core > --- PROPULSION (2) --- Light Treads Spiked Treads > --- UTILITY (2) ------ Large Storage Unit Superbattery > --- WEAPON (2) ------- Assault Rifle Assault Rifle > --- INVENTORY (15) --- Light Ion Engine Structural Scanner Grenade Launcher Maul Peak State ------------ > --- POWER ------------ Light Nuclear Core > --- PROPULSION ------- Light Treads Spiked Treads > --- UTILITY ---------- Large Storage Unit Superbattery > --- WEAPON ----------- Assault Rifle Assault Rifle > --- INVENTORY -------- Light Ion Engine Structural Scanner Grenade Launcher Maul [Rating: 19] Favorites ----------- Power Light Nuclear Core Engine Ion Engine Power Core Light Nuclear Core Propulsion Light Treads Treads Light Treads Utility Large Storage Unit Device Heat Sink Storage Large Storage Unit Weapon Assault Rifle Ballistic Gun Assault Rifle Launcher Grenade Launcher Impact Weapon Maul Build | -11 -10 -10 -10 -9 ------- Run | Yrd Mat Min Exi Min Slots Evolved . | . . . . . Power . | . . . . . Propulsion . | . . . . . Utility . | . . . . . Weapon . | . . . . . Parts Attached 29 | 6 20 . 1 2 Power 6 | 1 5 . . . Engine 2 | 1 1 . . . Core 4 | . 4 . . . Reactor . | . . . . . Propulsion 7 | 2 5 . . . Treads 7 | 2 5 . . . Leg . | . . . . . Wheel . | . . . . . Hover . | . . . . . Flight . | . . . . . Utility 5 | 1 3 . 1 . Device 1 | . 1 . . . Storage 4 | 1 2 . 1 . Processor . | . . . . . Hackware . | . . . . . Protection . | . . . . . Artifact . | . . . . . Weapon 11 | 2 7 . . 2 Energy Gun . | . . . . . Energy Cannon . | . . . . . Ballistic Gun 9 | 2 5 . . 2 Ballistic Cannon . | . . . . . Launcher 1 | . 1 . . . Special Weapon . | . . . . . Impact Weapon 1 | . 1 . . . Slashing Weapon . | . . . . . Piercing Weapon . | . . . . . Special Melee Weapon . | . . . . . Unidentified Prototypes . | . . . . . Parts Lost 5 | . 5 . . . Power 1 | . 1 . . . Propulsion 2 | . 2 . . . Utility 1 | . 1 . . . Weapon 1 | . 1 . . . Highest Loss Streak 1 | . 1 . . . To Critical Strikes . | . . . . . Average Slot Usage (%) 83 | . 86 85 66 77 Engine 2 | . 3 . . . Core 10 | . 9 14 14 14 Treads 24 | . 23 28 28 28 Device 4 | . 6 . . . Storage 16 | . 14 14 20 28 Ballistic Gun 17 | . 20 28 3 5 Impact Weapon 4 | . 6 . . . Peak Build Rating 19 | 6 10 9 17 19 Average Rating 9 | 4 8 9 11 17 On Entrance 8 | . 6 9 9 17 Naked Turns . | . . . . . Heaviest Build 33 | 12 31 29 29 33 Greatest Support 40 | 40 40 40 40 40 Greatest Overweight (x) 9 | . 9 . . . Average Overweight (x) . | . . . . . Largest Inventory Capacity 15 | 8 15 15 15 15 Average Capacity 13 | 6 13 15 15 15 Most Carried 6 | 1 5 4 6 6 Average Carried 4 | . 3 4 5 5 Final Capacity 15 | 8 15 15 15 15 Final Carried 6 | 1 4 4 6 4 Class Distribution -------------------- 100% | Mutant Dominant Class ---------------- Mutant | -10/Materials Mutant | -10/Mines Mutant | -10/Exiles Mutant | -9/Mines Resources | -11 -10 -10 -10 -9 ----------- Run | Yrd Mat Min Exi Min Matter Collected 855 | 238 593 . . 24 Remotely . | . . . . . Salvage Created 1111 | . 1058 . . 53 Parts 71 | . 70 . . 1 Haulers Intercepted 1 | . 1 . . . Recyclers Shooed 1 | . 1 . . . Parts Field Recycled . | . . . . . Retrieved Matter . | . . . . . Parts Self-Destructed . | . . . . . Prevented . | . . . . . Kills | -11 -10 -10 -10 -9 ------- Run | Yrd Mat Min Exi Min Combat Hostiles Destroyed 22 | . 21 . . 1 Melee 1 | . 1 . . . Guns 18 | . 17 . . 1 AOE 1 | . 1 . . . Classes Destroyed 9 | . 9 . . . Worker 4 | . 4 . . . Builder 3 | . 3 . . . Tunneler 2 | . 2 . . . Hauler 1 | . 1 . . . Operator 1 | . 1 . . . Watcher 2 | . 2 . . . Swarmer 3 | . 3 . . . Grunt 17 | . 16 . . 1 Subdweller 2 | . 2 . . . Best Kill Streak 5 | . 5 . . 1 Combat Bots Only 3 | . 3 . . 1 Max Kills in Single Turn 2 | . 2 . . 1 Gunslinging . | . . . . . Exploded 1 | . 1 . . . Melee 1 | . 1 . . . Uniques/NPCs Destroyed . | . . . . . Combat | -11 -10 -10 -10 -9 -------- Run | Yrd Mat Min Exi Min Hostile Shots Fired 146 | . 126 . . 20 Missed 36 | . 32 . . 4 Damage Taken 1467 | . 1253 . . 214 Core 250 | . 206 . . 44 Absorbed by Shields . | . . . . . Core Remaining (%) 100 | 100 . . . . Volleys Fired 131 | . 124 . . 7 Largest 2 | . 2 . . 2 Hottest 50 | . 50 . . 40 Shots Fired 199 | . 185 . . 14 Gun 198 | . 184 . . 14 Cannon . | . . . . . Launcher 1 | . 1 . . . Special . | . . . . . Kinetic 198 | . 184 . . 14 Thermal . | . . . . . Explosive 1 | . 1 . . . Electromagnetic . | . . . . . Robot Hit Streak 24 | . 24 . . 9 Robot Miss Streak 4 | . 4 . . 2 Penetration Max . | . . . . . Secondary Targets 3 | . 2 . . 1 Max Gunslinging Chain 1 | . 1 . . 1 Shots Hit Robots 159 | . 147 . . 12 Core Hits 62 | . 57 . . 5 Critical Kills . | . . . . . Critical Parts Destroyed 5 | . 5 . . . Critical Strikes 5 | . 5 . . . Destroy 1 | . 1 . . . Smash 4 | . 4 . . . Melee Attacks 18 | . 18 . . . Impact 18 | . 18 . . . Slashing . | . . . . . Piercing . | . . . . . Sneak Attacks 8 | . 8 . . . Combat Hostiles 1 | . 1 . . . Follow-up Attacks . | . . . . . Damage Inflicted 2484 | . 2325 . . 159 Guns 1429 | . 1270 . . 159 Cannons . | . . . . . Explosions 134 | . 134 . . . Melee 921 | . 921 . . . Ramming . | . . . . . Kinetic 1429 | . 1270 . . 159 Thermal . | . . . . . Explosive 134 | . 134 . . . Electromagnetic . | . . . . . Impact 921 | . 921 . . . Slashing . | . . . . . Piercing . | . . . . . Highest Corruption 2 | . 2 2 2 2 Average Corruption 1 | . 1 2 2 2 Corruption Purged . | . . . . . Corruption Blocked . | . . . . . Effects 38 | . 29 . 5 4 Message Errors 5 | . 5 . . . Matter Fused 11 | . 8 . 1 2 Heat Flow Errors 4 | . 3 . 1 . Energy Discharges 7 | . 4 . 2 1 Parts Fused 1 | . 1 . . . Data Loss (minor) 6 | . 5 . . 1 Data Loss (major) 1 | . . . 1 . Misfires 1 | . 1 . . . Alerts 2 | . 2 . . . Overload Shots . | . . . . . Overflow Damage 547 | . 547 . . . Projectiles . | . . . . . Explosions 10 | . 10 . . . Melee 537 | . 537 . . . Knockbacks 1 | . 1 . . . Impact 1 | . 1 . . . Kinetic . | . . . . . Secondary . | . . . . . Self-Inflicted Damage 10 | . 10 . . . Shots 1 | . 1 . . . Rammed . | . . . . . Targets Rammed . | . . . . . Kicked . | . . . . . Crushed . | . . . . . Highest Temperature 277 | . 207 . 277 26 Average Temperature 61 | . 47 . 142 17 Received Heat Transfer 690 | . 573 . . 117 Siege Activations . | . . . . . Robots Corrupted 3 | . 3 . . . Combat Hostiles 2 | . 2 . . . Parts Fried 11 | . 11 . . . Impact Corruptions 14 | . 14 . . . Robots Melted . | . . . . . Combat Hostiles . | . . . . . Parts Melted . | . . . . . Heat Transferred . | . . . . . Parts Sabotaged . | . . . . . Parts Stolen . | . . . . . Parts Stripped . | . . . . . Power Chain Reactions . | . . . . . Alert | -11 -10 -10 -10 -9 ------- Run | Yrd Mat Min Exi Min Peak Influence 234 | . 234 . . 30 Initial . | . . . . . Average 73 | . 87 . . . Maximum Alert Level 1 | . 1 . . . Low Security (%) 91 | 100 89 100 . 100 Level 1 8 | . 10 . . . Level 2 . | . . . . . Level 3 . | . . . . . Level 4 . | . . . . . Level 5 . | . . . . . High Security . | . . . . . Max Security . | . . . . . Squads Dispatched 4 | . 4 . . . Investigation 1 | . 1 . . . Extermination . | . . . . . Reinforcement 3 | . 3 . . . Assault . | . . . . . Garrison . | . . . . . Intercept . | . . . . . Searches Triggered . | . . . . . Construction Impeded . | . . . . . Haulers Reinforced . | . . . . . Active Scanning Responses . | . . . . . Cargo Convoy Interrupts . | . . . . . Stealth | -11 -10 -10 -10 -9 --------- Run | Yrd Mat Min Exi Min Distress Signals 3 | . 3 . . . Communications Jammed . | . . . . . Distress Signals . | . . . . . Times Spotted 43 | . 40 . . 3 Peak Tracking Total 4 | . 4 . . 3 Tactical Retreats 3 | . 3 . . . Traps | -11 -10 -10 -10 -9 ------- Run | Yrd Mat Min Exi Min Traps Triggered 6 | . 6 . . . Indirectly . | . . . . . Trap Hack Attempts . | . . . . . Triggered . | . . . . . Disarmed . | . . . . . Reprogrammed . | . . . . . Reused . | . . . . . Traps Extracted . | . . . . . Installed . | . . . . . Triggered . | . . . . . Machines | -11 -10 -10 -10 -9 ---------- Run | Yrd Mat Min Exi Min Machines Disabled . | . . . . . Max in Single Turn . | . . . . . Machines Repaired . | . . . . . Machines Dismantled . | . . . . . Machines Sabotaged . | . . . . . Overloaded Fab Kills . | . . . . . Hacking | -11 -10 -10 -10 -9 --------- Run | Yrd Mat Min Exi Min Machines Accessed 5 | . 4 . 1 . Terminals 4 | . 4 . . . Fabricators . | . . . . . Repair Stations . | . . . . . Recycling Units . | . . . . . Scanalyzers . | . . . . . Garrison Access . | . . . . . Total Hacks 18 | . 17 . 1 . Successful 10 | . 9 . 1 . Failed 8 | . 8 . . . Catastrophic . | . . . . . Database Lockouts . | . . . . . Manual 11 | . 10 . 1 . Terminals 17 | . 17 . . . Fabricators . | . . . . . Repair Stations . | . . . . . Recycling Units . | . . . . . Scanalyzers . | . . . . . Garrison Access . | . . . . . Terminal Hacks 6 | . 5 . 1 . Prototype ID Bank 2 | . 2 . . . Branch Access Points 1 | . 1 . . . Locate Traps 1 | . 1 . . . Zone Layout 1 | . 1 . . . Derelict Proto ID Bank 1 | . . . 1 . Fabricator Hacks . | . . . . . Repair Station Hacks . | . . . . . Recycling Unit Hacks . | . . . . . Scanalyzer . | . . . . . Garrison Access Hacks . | . . . . . Unauthorized Hacks 4 | . 4 . . . Terminals 4 | . 4 . . . Botnet 2 | . 2 . . . Operators 2 | . 2 . . . Fabricators . | . . . . . Repair Stations . | . . . . . Recycling Units . | . . . . . Scanalyzers . | . . . . . Garrison Access . | . . . . . Data Cores Recovered . | . . . . . Used . | . . . . . Hacking Detections 4 | . 4 . . . Full Trace Events 2 | . 2 . . . Feedback Events . | . . . . . Feedback Blocked . | . . . . . Robot Schematics Acquired . | . . . . . Robots Built . | . . . . . Authchips . | . . . . . Time . | . . . . . Total Robot Build Rating . | . . . . . Part Schematics Acquired . | . . . . . Parts Built . | . . . . . Authchips . | . . . . . Time . | . . . . . Total Part Build Rating . | . . . . . Parts Repaired . | . . . . . Time . | . . . . . Parts Recycled . | . . . . . Recycled Matter . | . . . . . Retrieved Matter . | . . . . . Retrieved Components . | . . . . . Parts Scanalyzed . | . . . . . Part Schematics Acquired . | . . . . . Parts Damaged . | . . . . . Bothacking | -11 -10 -10 -10 -9 ------------ Run | Yrd Mat Min Exi Min Used RIF Installer . | . . . . . Robots Hacked . | . . . . . Non-combat . | . . . . . Combat . | . . . . . Robot Hacks Applied . | . . . . . Relay Couplers Released . | . . . . . Fabnet Peak Effective % . | . . . . . Robots Rewired . | . . . . . Allies Hacked . | . . . . . Hacks Repelled . | . . . . . Allies | -11 -10 -10 -10 -9 -------- Run | Yrd Mat Min Exi Min Total Allies . | . . . . . Largest Group . | . . . . . Highest-Rated Group . | . . . . . Highest-Rated Ally . | . . . . . Total Orders . | . . . . . Ally Attacks . | . . . . . Total Damage . | . . . . . Kills . | . . . . . Allies Corrupted . | . . . . . Allies Melted . | . . . . . Intel | -11 -10 -10 -10 -9 ------- Run | Yrd Mat Min Exi Min Robot Analysis Total . | . . . . . Derelict Logs Recovered . | . . . . . Drone Launches . | . . . . . Drone Recoveries . | . . . . . Exploration | -11 -10 -10 -10 -9 ------------- Run | Yrd Mat Min Exi Min Turns Passed 2732 | 65 2008 84 334 241 Spaces Moved 1311 | 37 887 53 208 126 Core 8 | 3 5 . . . Treads 1303 | 34 882 53 208 126 Legs . | . . . . . Wheels . | . . . . . Hover . | . . . . . Flight . | . . . . . Fastest Speed 50 | 50 160 160 160 160 Average Speed 172 | 151 179 160 160 160 Slowest Speed 500 | 160 500 160 160 160 Overloaded Moves . | . . . . . Propulsion Burnouts . | . . . . . Robots Hopped . | . . . . . Cave-ins Triggered . | . . . . . Exploration Rate (%) 43 | 5 97 16 61 37 Regions Visited 4 Branch Regions 3 Pre-discovered Areas . | . . . . . Known Exits Taken 1 | . 1 . . . Unknown Exits Taken 3 | 1 . 1 1 . Scrap Searched 1 | . . . . 1 Spaces Dug . | . . . . . Terrain Destroyed 4 | . 4 . . . Melee . | . . . . . Projectile . | . . . . . AOE 4 | . 4 . . . Terrain Rammed . | . . . . . Walls Destroyed . | . . . . . Machines Disabled . | . . . . . Actions | -11 -10 -10 -10 -9 --------- Run | Yrd Mat Min Exi Min Total 1560 | 43 1103 52 210 152 Wait 61 | . 44 . . 17 Move 1307 | 36 886 52 207 126 Hop . | . . . . . Pick Up 5 | 1 4 . . . Fast Attach 17 | 6 10 . 1 . Attach 5 | . 3 . . 2 Detach 3 | . 1 . 2 . Swap 7 | . 7 . . . Drop 6 | . 6 . . . Fire 131 | . 124 . . 7 Melee 18 | . 18 . . . Ram . | . . . . . Kick . | . . . . . Crush . | . . . . . Escape Stasis . | . . . . . Rewire . | . . . . . Trap . | . . . . . Miscellaneous . | . . . . . Route ------- -11/Scrapyard -10/Materials (discovered 4 exits: [*Mat x3] / *Min) -10/Mines -10/Exiles -9/Mines History --------- Turn | Location | Event 8 | -11/Scrapyard | Discovered new exit (range 16) 66 | -11/Scrapyard | Entered Materials 309 | -10/Materials | Build established: Mutant 376 | -10/Materials | Discovered new exit (range 14) 759 | -10/Materials | Discovered new exit (range 6) 1066 | -10/Materials | Derelicts attacked the area 1210 | -10/Materials | Core integrity fell below 50% 1463 | -10/Materials | Identified exit to Mines 1554 | -10/Materials | Discovered new exit (range 8) 1910 | -10/Materials | Core integrity fell below 20% 2074 | -10/Materials | Entered Mines 2151 | -10/Mines | Deemed a non-threat by the Exiles lab entrance 2151 | -10/Mines | Discovered new exit (range 5) 2158 | -10/Mines | Entered Exiles 2197 | -10/Exiles | Met 8R-AWN 2227 | -10/Exiles | Met EX-HEX 2268 | -10/Exiles | Met EX-BIN 2287 | -10/Exiles | Aligned with FarCom system 2289 | -10/Exiles | Given EX-Vault access code 2326 | -10/Exiles | Opened EX-Vault 2335 | -10/Exiles | Found Superbattery 2371 | -10/Exiles | Warned to stay clear of 0b10 Research branches 2392 | -10/Exiles | Exiles lab attacked by MAIN.C 2475 | -10/Exiles | Discovered new exit (range 12) 2492 | -10/Exiles | Left Exiles lab with Superbattery 2492 | -10/Exiles | Entered Mines 2733 | -9/Mines | Destroyed by G-34 Mercenary with Small Laser Last Messages --------------- destroying stuff raised the alert level high enough to trigger assault squads over in the main complex, and they later decided the best way to defend their interests would be to start expanding in this direction." K-01 Serf collects debris. System corrupted: Component data lost. Searching scrap... Found Shield Generator. Found Com. Wheel. Found Med. Laser. Found Tractor Beam. Found 34 Matter. Acquired 24 matter. System corrupted: Matter fused (-10). AM-PHS destroyed. G-34 Mercenary destroyed. System corrupted: Matter fused (-9). G-47 Trooper destroyed. Switching to secondary target: G-34 Mercenary. Map ----- +----------------------------------------------------+ | | | | | | | | | | | | | | | | | | | | | | | | | ??????????????????????????????????????? | | ??????????????????????????????????????? | | ?????####?????????????????????????????? | | ????## ##????????????????????????????? | | ???## ##???????????????????????????? | | ???# ##??????????????????????????? | | ???# ##???????????#####?????????? | | ????# ####???????## ##????????? | | ???## ####?#### ##???????? | | #### ### ##??????? | | # g ####???? | | [%= ???? | | ###### % %*[ ????? | | # ##????#### @### ???????? | | ## #????????### #???????????? | | ?## #??????????## #???????????? | | ?## ##??????????# #???????????? | | ## ##?????????# ##???????????? | | # #?????????## ##????????????? | | # #??????????####?????????????? | | #???????????????????????????? | | #???????????????????????????? | | ##?????????????#####????????? | | #????####????## ##???????? | | ## #???## ##???# #???????? | | ##?# ##?## ##??# #???????? | | #### ### #### #????????? | | ## ## #?????????? | | ?# ##### ## ## #?????????? | | ## #???### ##### ### ##????????? | | ## ##????## ##???# #?## #????????? | | ##????## ##????# #??# ##???????? | | #???### #???### #### ###?????? | | #???# #???# #?????? | | # #???# ##???# ###### #?????? | | ### ##???# #????# ?????# ##?????? | | ??? ##????# #????#??????## #??????? | | ??? #????## ###### #?????# #??????? | +----------------------------------------------------+ Best States ------------- Heat Dissipation 35 Energy Generation 14 Energy Capacity 1660 Matter Stores 300 Matter Capacity 300 Sight Range 16 Terrain Scan Density 10 Evasion (%) 40 Recoil Reduction 2 Item Schematics ----------------- None Robot Schematics ------------------ None Fabricated ------------ Nothing Alien Tech Used ----------------- None Achievements -------------- None Challenges ------------ None Game ------ Seed GravitonMasterInsulator Manual? 0 Play Time 00:17:35 Cumulative 81.2 hours Start 2024.08.26 @ 22:55:07 End 2024.08.26 @ 23:11:06 Sessions 1 Manual Loads 0 Difficulty Rogue Special Mode None Game No. 75 Rogue 75 Adventurer 0 Explorer 0 Win Type - Total 0 Types 0/0/0/0/0/0/0/0/0 Lore% 24 Gallery% 48 Achievement% 37 Wizard Run 0 Options --------- Layout 2 ASCII 0 Keyboard 0 Movement Arrows Keybinds 0 Fullscreen 1 Font 16/Terminus Map View 55x47 Zoom Use 0% Tactical HUD 0 Map Filters NONE Filters NONE Steam 1 RUN: 5b6e0687-62cc-44b3-bcb3-d7be94a5e086